bitfinex/quotes_ETHUSD_20240828
["timestamp","ask_amount","ask_price","bid_price","bid_amount"]
[1724808520743,4.15104081,2438.0,2437.1,13.37073887]
[1724808521252,4.1019,2437.9,2437.1,6.00172978]
[1724808521451,4.1019,2437.9,2437.1,7.13239276]
[1724808521452,4.1511467,2437.9,2437.1,7.13239276]
[1724808521658,4.1511467,2437.9,2437.2,0.08205308]
[1724808521860,4.1511467,2437.9,2437.1,7.13239276]
[1724808521861,0.0492467,2437.9,2437.1,7.13239276]
[1724808522081,4.10132,2438.3,2437.2,0.79529236]
[1724808522392,0.0492467,2437.8,2437.2,0.71323928]
[1724808522595,4.10131,2438.3,2437.3,0.86661257]
[1724808522746,0.0492467,2437.7,2437.3,0.86661257]
[1724808523070,0.04760514,2437.6,2437.4,5.59152978]
[1724808523270,4.10165,2438.1,2437.5,0.08204233]
[1724808523585,4.10165,2438.1,2437.5,0.56735721]
[1724808523784,4.10177,2438.0,2437.1,1.54086298]
[1724808523990,4.10204,2437.9,2437.1,1.54086298]
[1724808524485,4.10207,2437.8,2437.1,1.54086298]
[1724808524791,4.10207,2437.8,2437.2,0.4540863]
[1724808525083,8.20424,2437.8,2437.2,0.4540863]
[1724808525247,4.10207,2437.8,2437.2,0.53613704]
[1724808525681,4.10207,2437.8,2437.2,0.536137]
[1724808525860,4.10207,2437.8,2437.2,0.53613704]
[1724808526062,4.10207,2437.8,2437.2,0.54113704]
[1724808527047,4.10152,2438.2,2437.3,5.67358052]
[1724808527456,0.52912,2438.4,2437.3,5.67358052]
[1724808527457,4.63026,2438.4,2437.6,5.59152978]
[1724808527653,4.10088,2438.5,2437.7,0.6411843]
[1724808527988,4.10106,2438.4,2437.7,3.55915298]
[1724808528192,4.10106,2438.4,2437.7,3.96935298]
[1724808528347,8.20222,2438.4,2437.7,3.96935298]
[1724808528550,4.10123,2438.3,2437.7,3.96935298]
[1724808528754,4.10141,2438.2,2437.7,0.4102]
[1724808528991,4.10196,2437.9,2437.7,0.4102]
[1724808529206,4.922322,2437.9,2437.4,2.4404]
[1724808529365,4.922322,2437.9,2437.2,0.005]
[1724808529366,4.10268,2437.5,2437.2,0.005]
[1724808529566,4.10274,2437.4,2437.2,0.005]
[1724808529789,4.10268,2437.5,2437.2,0.005]
[1724808529990,7.10167,2438.1,2437.2,2.4454]
[1724808530205,4.10185,2438.0,2437.3,0.32658639]
[1724808530562,2.3764,2438.3,2437.2,2.4454]
[1724808530799,4.1025,2437.6,2437.2,0.005]
[1724808531176,0.04785108,2437.5,2437.2,0.005]
[1724808531685,4.10273,2437.4,2437.2,0.005]
[1724808531907,4.1029,2437.3,2437.2,0.005]
[1724808532063,4.10273,2437.4,2437.2,0.005]
[1724808532262,0.04779929,2437.3,2437.2,0.005]
[1724808533076,4.10251,2437.6,2437.2,0.005]
[1724808533387,0.04779929,2437.3,2437.2,0.005]
[1724808533559,4.10248,2437.6,2437.2,0.005]
[1724808533768,0.04779929,2437.3,2437.2,0.005]
[1724808534283,4.10248,2437.6,2437.2,0.005]
[1724808534489,0.04779929,2437.3,2437.2,0.005]
[1724808534666,4.10248,2437.6,2437.2,0.005]
[1724808534667,8.20437,2437.8,2437.2,0.005]
[1724808534869,0.04779929,2437.3,2437.2,0.005]
[1724808535087,4.10226,2437.7,2437.2,0.005]
[1724808535288,0.04779929,2437.3,2437.2,0.005]
[1724808535490,4.10271,2437.5,2437.2,0.005]
[1724808535670,0.04779929,2437.3,2437.2,0.005]
[1724808535864,4.10274,2437.4,2437.2,0.005]
[1724808536366,4.10242,2437.6,2437.2,0.005]
[1724808536367,0.04779929,2437.3,2437.2,0.005]
[1724808536792,4.10192,2437.9,2437.2,0.005]
[1724808536793,4.10285,2437.4,2437.2,0.005]
[1724808536968,0.04779929,2437.3,2437.2,0.005]
[1724808537671,4.15069929,2437.3,2437.2,0.005]
[1724808537872,0.04779929,2437.3,2437.2,0.005]
[1724808538068,8.25359929,2437.3,2437.2,0.005]
[1724808538270,18.84803622,2437.3,2437.2,0.005]
[1724808539422,22.95093622,2437.3,2437.2,0.005]
[1724808539634,22.95093622,2437.3,2435.8,0.64218842]
[1724808539635,4.10525,2435.9,2435.8,0.64218842]
[1724808539915,2.2559,2436.2,2435.2,0.64758334]
[1724808539916,4.10501,2436.1,2435.2,0.64758334]
[1724808540094,4.15067643,2435.9,2435.3,0.33963833]
[1724808540278,4.10503,2436.1,2435.4,0.64258334]
[1724808540478,0.04536461,2435.8,2435.5,0.64258334]
[1724808540810,4.10502,2436.1,2435.3,0.42175585]
[1724808540811,4.10535,2435.9,2435.4,0.64258334]
[1724808540986,0.044937,2435.7,2435.3,0.98222167]
[1724808541183,4.10593,2435.5,2435.2,0.4152]
[1724808541403,4.10477,2436.2,2435.2,0.005]
[1724808541404,4.10627,2435.3,2435.2,0.005]
[1724808541584,2.2559,2435.6,2435.2,0.005]
[1724808541785,0.04419814,2435.3,2435.2,0.005]
[1724808542128,0.04418517,2435.3,2435.2,2.2709]
[1724808542405,2.3236,2436.6,2435.2,8.75091926]
[1724808542406,4.10494,2436.1,2435.2,8.75091926]
[1724808542614,4.10451,2436.4,2435.3,0.72483708]
[1724808542909,4.10451,2436.4,2435.4,0.64273145]
[1724808543077,4.10483,2436.2,2435.5,0.08210402]
[1724808543272,0.04269937,2436.3,2435.5,0.54209676]
[1724808543579,0.04271234,2436.1,2435.5,6.14408187]
[1724808543885,6.42778,2436.6,2435.6,2.88412841]
[1724808543886,0.04319199,2436.0,2435.6,2.88412841]
[1724808544092,4.10442,2436.4,2435.7,0.98491936]
[1724808544295,0.04319199,2435.9,2435.8,0.0820983]
[1724808544513,4.10417,2436.6,2435.8,0.0820983]
[1724808544694,0.04319199,2435.9,2435.8,0.46900307]
[1724808544898,4.10445,2436.4,2435.8,0.46900307]
[1724808545084,0.04319199,2435.9,2435.6,0.4102]
[1724808545282,4.10514,2436.0,2435.6,0.4102]
[1724808545525,4.10564,2435.7,2435.2,0.005]
[1724808546232,8.21254,2435.3,2435.2,0.005]
[1724808546720,4.14947495,2435.3,2435.2,0.005]
[1724808547342,12.36201495,2435.3,2435.2,0.005]
[1724808547637,21.48651645,2435.3,2435.2,0.005]
[1724808548125,12.72397645,2435.3,2435.2,0.005]
[1724808549222,9.72397645,2435.3,2435.2,0.005]
[1724808549536,8.86665744,2435.3,2435.2,0.005]
[1724808550039,15.97292744,2435.3,2435.2,0.005]
[1724808550733,20.07919744,2435.3,2435.2,0.005]
[1724808550888,20.07919744,2435.3,2433.4,0.164648]
[1724808550889,8.21522,2434.5,2433.2,2.4812]
[1724808551095,8.21522,2434.5,2432.7,0.85382454]
[1724808551096,18.78084,2434.5,2432.7,2.4812]
[1724808551289,18.81981766,2434.5,2432.7,2.4812]
[1724808551513,22.36981766,2434.5,2432.7,2.4812]
[1724808551733,18.26220766,2434.5,2432.9,0.4102]
[1724808552044,15.34590366,2434.5,2433.1,6.01218511]
[1724808552196,13.60459766,2434.5,2433.4,8.08358511]
[1724808552392,13.60459766,2434.5,2433.4,2.4816]
[1724808553794,4.14658766,2434.5,2433.6,5.60198511]
[1724808554022,8.25419766,2434.5,2433.4,2.4816]
[1724808554222,8.25419766,2434.5,2433.4,5.4816]
[1724808555038,12.36180766,2434.5,2433.4,5.4816]
[1724808555210,9.49037843,2434.5,2433.5,0.08218415]
[1724808555537,4.14658766,2434.5,2433.5,0.08217569]
[1724808555736,0.03897766,2434.5,2433.6,5.60198511]
[1724808556038,8.21522,2434.5,2433.5,3.0]
[1724808556247,8.21522,2434.5,2433.4,5.4816]
[1724808556248,8.25344473,2434.5,2433.4,5.4816]
[1724808556398,15.91105473,2434.5,2433.4,2.4816]
[1724808556604,17.5021602,2434.5,2433.4,2.4816]
[1724808556805,12.8445502,2434.5,2433.4,2.4816]
[1724808557032,12.8445502,2434.5,2433.4,2.56377964]
[1724808557216,11.25344473,2434.5,2433.4,2.56377964]
[1724808557421,7.14583473,2434.5,2433.6,5.60198511]
[1724808557600,4.14583473,2434.5,2433.7,0.08216991]
[1724808557999,2.3423,2435.3,2434.1,2.4193]
[1724808558203,4.10746,2434.6,2434.1,2.4193]
[1724808558538,8.21522,2434.5,2433.7,2.4193]
[1724808558841,8.2520537,2434.5,2433.7,2.4193]
[1724808559025,8.2520537,2434.5,2433.5,3.0]
[1724808559238,8.2520537,2434.5,2433.4,5.4193]
[1724808559431,8.2520537,2434.5,2433.5,3.4102]
[1724808559636,8.2520537,2434.5,2433.5,0.4102]
[1724808559840,8.2520537,2434.5,2433.5,3.4102]
[1724808560231,8.2520537,2434.5,2433.5,3.49238096]
[1724808560436,8.2520537,2434.5,2433.5,3.4102]
[1724808561027,12.3596637,2434.5,2433.5,0.4102]
[1724808561236,21.34822007,2434.5,2432.9,5.60198511]
[1724808561527,4.10957,2433.4,2432.7,2.4193]
[1724808561710,4.10966,2433.3,2432.7,2.4193]
[1724808561915,4.10957,2433.4,2432.7,2.66123]
[1724808562152,5.3423,2433.9,2432.7,2.66123]
[1724808562153,4.1092,2433.6,2432.7,2.66123]
[1724808562457,4.10956,2433.4,2432.7,2.66123]
[1724808562614,4.10973,2433.3,2432.7,2.66123]
[1724808562810,4.11007,2433.1,2432.7,2.66123]
[1724808563016,9.71098511,2433.7,2432.2,2.4193]
[1724808563315,9.71098511,2433.7,2431.4,1.28210903]
[1724808563316,4.11111,2432.5,2431.7,2.4193]
[1724808563514,4.11111,2432.5,2431.2,1.28210903]
[1724808563515,5.60198511,2431.8,2430.8,0.85382454]
[1724808563710,5.60198511,2431.8,2430.2,8.02128511]
[1724808563711,2.3423,2431.6,2430.2,8.02128511]
[1724808563951,2.3423,2432.0,2430.3,0.33659373]
[1724808564155,2.3423,2432.0,2430.4,2.4193]
[1724808564357,2.3423,2430.1,2429.1,1.6530656]
[1724808564519,1.54351447,2431.9,2427.8,0.59933663]
[1724808564520,0.05,2429.7,2427.8,0.59933663]
[1724808564713,1.22294921,2429.6,2427.3,2.4193]
[1724808564947,4.11711,2428.9,2427.4,0.08239162]
[1724808565155,0.08231697,2429.6,2427.6,2.0]
[1724808565353,0.08231697,2429.5,2427.4,3.27312454]
[1724808565667,1.4228299,2429.5,2427.4,2.4193]
[1724808565955,4.11725,2428.8,2427.5,0.08239933]
[1724808566114,0.08231697,2428.7,2427.6,0.0823772]
[1724808566313,4.11778,2428.5,2426.5,2.42895287]
[1724808566517,0.08231697,2429.1,2427.3,6.1198]
[1724808566733,0.08231697,2430.3,2428.7,2.0]
[1724808566950,4.11384,2430.9,2429.0,2.0]
[1724808567240,4.11297,2431.4,2428.8,0.40718907]
[1724808567241,0.08231697,2430.8,2429.2,2.0]
[1724808567438,4.11447,2430.5,2429.1,2.4193]
[1724808567749,0.49376397,2430.4,2429.2,0.01193]
[1724808567964,0.08231697,2430.4,2429.2,0.01193]
[1724808568371,0.08231697,2430.4,2429.2,0.56193]
[1724808568536,2.428,2431.1,2429.9,2.3988]
[1724808568537,0.08231697,2431.1,2429.9,2.3988]
[1724808568742,4.11274,2431.5,2430.0,1.38406658]
[1724808568938,0.08231697,2431.4,2430.2,5.94186578]
[1724808569134,0.08231697,2431.4,2430.3,3.63226681]
[1724808569340,0.08231697,2431.4,2430.0,0.83406658]
[1724808569570,0.00487139,2431.3,2430.2,5.94186578]
[1724808569871,0.00487139,2431.3,2430.3,0.08225657]
[1724808570046,0.08718836,2431.3,2430.0,0.83406658]
[1724808570257,4.11451,2430.5,2429.2,0.01193]
[1724808570473,0.08718836,2430.4,2429.2,0.01193]
[1724808570648,0.08718836,2430.4,2429.2,0.09423438]
[1724808570835,0.00487139,2430.4,2429.3,2.55]
[1724808571044,0.00487139,2430.4,2429.4,0.08228915]
[1724808571237,0.00487139,2430.4,2429.6,5.94186578]
[1724808571478,0.00487139,2430.4,2429.7,3.73147509]
[1724808571683,0.00487139,2430.4,2429.9,2.4795]
[1724808572384,0.00487139,2430.4,2430.0,0.0822885]
[1724808572748,0.00487139,2430.4,2430.1,0.55]
[1724808572946,0.00487139,2430.4,2430.2,0.08227351]
[1724808573166,4.11254,2431.6,2430.3,0.08227355]
[1724808573478,4.11151,2432.2,2430.7,2.4046]
[1724808573479,4.11157,2432.2,2430.7,2.4046]
[1724808573676,4.11157,2432.2,2430.8,0.63224309]
[1724808573889,4.11088,2432.6,2430.8,40.63224309]
[1724808574093,4.766667,2432.6,2430.9,0.60368431]
[1724808574298,4.766667,2432.6,2431.4,5.94186578]
[1724808574591,4.10811,2434.3,2431.4,5.94186578]
[1724808574592,4.10824,2434.2,2432.0,2.0]
[1724808574807,4.10824,2434.2,2432.2,2.4774]
[1724808574808,4.10884,2433.8,2432.2,2.4774]
[1724808574949,4.10851,2434.0,2432.2,2.4774]
[1724808574950,4.10847,2434.0,2432.3,2.63219419]
[1724808575157,4.10883,2433.8,2432.3,2.87993419]
[1724808575357,0.42366881,2434.9,2432.7,2.0]
[1724808575551,2.2601,2435.0,2432.8,0.63217008]
[1724808575552,4.1078,2434.4,2432.8,0.63217008]
[1724808575754,4.10748,2434.6,2433.4,5.94186578]
[1724808575955,4.10748,2434.6,2433.5,0.08216723]
[1724808576384,4.10727,2434.8,2433.6,2.3779]
[1724808576590,4.33309,2434.9,2433.7,0.62816506]
[1724808576755,4.10713,2434.8,2433.8,0.082152]
[1724808576966,0.22601,2434.9,2433.8,0.082152]
[1724808577164,4.10959,2433.4,2432.5,2.3578]
[1724808577410,4.10886,2433.8,2432.5,2.3578]
[1724808577561,4.10951,2433.4,2432.6,0.23578]
[1724808577756,0.23752,2434.5,2432.5,2.3578]
[1724808578059,4.10947,2433.5,2432.5,8.29966578]
[1724808578302,4.1078,2434.4,2432.5,2.3578]
[1724808578478,4.11064,2432.8,2431.9,2.3154]
[1724808578677,0.42366881,2434.1,2431.9,2.3154]
[1724808578678,4.11035,2432.9,2431.9,2.3154]
[1724808578891,4.11,2433.1,2432.0,0.08221973]
[1724808579203,0.22659,2433.5,2432.1,5.94186578]
[1724808579504,7.10816,2434.2,2432.2,0.08220933]
[1724808579707,7.10816,2434.2,2432.2,0.70859304]
[1724808579708,4.10948,2433.4,2432.2,0.70859304]
[1724808580296,4.10995,2433.2,2432.2,0.62638371]
[1724808580503,4.11016,2433.0,2432.3,0.08221282]
[1724808580673,4.10922,2433.6,2432.3,0.08221282]
[1724808580674,4.10953,2433.4,2432.3,0.08221282]
[1724808580871,4.1102,2433.0,2432.0,0.08220611]
[1724808581071,4.10923,2433.6,2431.9,2.3154]
[1724808581072,4.11084,2432.6,2431.9,2.3154]
[1724808581385,4.11117,2432.4,2431.3,8.32706578]
[1724808581587,4.11117,2432.4,2431.3,3.12222577]
[1724808581784,0.58704499,2432.4,2431.4,0.31222258]
[1724808581991,4.11052,2432.8,2431.4,0.39445921]
[1724808582212,6.47077,2433.7,2431.7,5.94186578]
[1724808582213,2.3617,2433.7,2431.7,5.94186578]
[1724808582360,4.11044,2432.9,2431.8,0.08221236]
[1724808582562,4.1107,2432.7,2431.8,0.60240781]
[1724808582761,4.1107,2432.7,2431.7,5.94186578]
[1724808583071,4.11038,2432.9,2431.8,0.08222388]
[1724808583279,4.11115,2432.5,2431.4,0.31222258]
[1724808583601,4.11074,2432.7,2431.4,3.31222258]
[1724808583763,4.10968,2433.3,2431.7,5.94186578]
[1724808583967,4.11013,2433.1,2431.8,3.0]
[1724808584279,2.3617,2433.7,2431.9,0.08221578]
[1724808584280,4.1097,2433.3,2431.9,0.08221578]
[1724808584585,2.3617,2433.7,2432.1,5.94186578]
[1724808584586,4.10938,2433.5,2432.1,5.94186578]
[1724808584794,4.10913,2433.6,2432.2,3.08220627]
[1724808584974,4.10906,2433.7,2432.2,3.08220627]
[1724808584975,4.756136,2433.7,2432.3,1.4524072]
[1724808585167,4.10942,2433.5,2432.4,0.08219399]
[1724808585368,4.11027,2433.0,2432.2,3.0]
[1724808585566,4.11032,2432.9,2432.2,3.0]
[1724808585761,4.10988,2433.2,2432.0,2.4289]
[1724808585967,4.10957,2433.4,2432.1,0.63221067]
[1724808586213,4.10714,2434.8,2433.2,5.94186578]
[1724808586416,0.05,2436.8,2433.6,2.3685]
[1724808586417,4.10776,2434.5,2433.6,2.3685]
[1724808586709,4.10808,2434.3,2433.6,2.3685]
[1724808587268,4.10851,2434.0,2433.6,2.3685]
[1724808587479,4.10716,2434.8,2433.6,2.3685]
[1724808587480,0.410851,2433.9,2433.6,2.3685]
[1724808587697,4.10753,2434.6,2433.6,2.3685]
[1724808587881,4.10753,2434.6,2433.7,0.08217591]
[1724808588066,4.10671,2435.1,2433.7,0.08217591]
[1724808588296,4.10801,2434.3,2433.6,8.31036578]
[1724808588484,4.10855,2434.0,2433.2,5.94186578]
[1724808588666,4.10817,2434.2,2433.3,0.08218075]
[1724808588889,4.10742,2434.7,2433.6,5.94186578]
[1724808589089,4.5587371,2434.9,2433.7,2.48765938]
[1724808589306,0.4517371,2434.9,2434.0,5.94186578]
[1724808589505,4.10677,2435.0,2434.1,0.0821533]
[1724808589709,8.21352,2435.1,2434.1,0.0821533]
[1724808590031,4.10644,2435.2,2433.7,2.4055]
[1724808590320,4.10788,2434.4,2433.7,2.4055]
[1724808590821,4.1061,2435.4,2433.7,2.4055]
[1724808590822,4.10845,2434.1,2433.7,2.4055]
[1724808591034,4.108,2434.3,2433.7,2.4055]
[1724808591594,4.10751,2434.6,2433.2,5.94186578]
[1724808591823,4.10874,2433.9,2433.2,5.94186578]
[1724808592183,4.10864,2433.9,2433.2,5.94186578]
[1724808592384,7.10683,2435.0,2433.2,6.02405061]
[1724808592385,4.10838,2434.1,2433.2,6.02405061]
[1724808592630,4.10734,2434.7,2433.3,0.08217855]
[1724808592786,4.10772,2434.5,2433.3,0.82818443]
[1724808592985,0.410734,2434.6,2433.6,5.94186578]
[1724808593211,4.1071,2434.9,2434.1,2.4689]
[1724808593539,4.10686,2435.0,2434.1,2.4689]
[1724808593821,4.10717,2434.8,2434.1,2.55106168]
[1724808594019,4.10686,2435.0,2434.1,2.55106168]
[1724808594020,4.05686,2435.0,2434.1,2.55106168]
[1724808594236,4.1065,2435.2,2434.1,2.55106168]
[1724808594438,8.21236,2435.4,2434.4,5.94186578]
[1724808594591,8.21236,2435.4,2434.1,2.55106168]
[1724808594592,4.10564,2435.7,2434.1,2.4689]
[1724808594793,4.10564,2435.7,2433.6,2.7148]
[1724808594794,4.10812,2434.2,2433.6,2.7148]
[1724808595031,4.10796,2434.3,2433.6,2.79697025]
[1724808595228,8.21545,2434.5,2433.6,2.79697025]
[1724808595432,4.10826,2434.2,2433.6,2.3046]
[1724808595632,4.10785,2434.4,2433.6,2.3046]
[1724808595805,4.10652,2435.2,2433.6,2.3046]
[1724808595806,4.10755,2434.6,2433.6,2.38677483]
[1724808596016,0.638292,2435.1,2433.6,2.38677483]
[1724808596241,0.638292,2435.1,2433.6,2.3046]
[1724808596242,4.10814,2434.2,2433.6,2.3046]
[1724808596623,4.10775,2434.5,2433.6,2.38677023]
[1724808596833,0.638292,2435.1,2433.6,2.38677023]
[1724808596834,4.10715,2434.8,2433.6,2.3046]
[1724808597009,4.10838,2434.1,2433.6,2.3046]
[1724808597907,4.10806,2434.3,2433.6,2.3046]
[1724808598110,4.10823,2434.2,2433.6,2.3046]
[1724808598311,4.1072,2434.8,2433.9,5.94186578]
[1724808598620,4.10777,2434.5,2433.9,5.94186578]
[1724808599008,4.10805,2434.3,2433.9,5.94186578]
[1724808599247,4.10771,2434.5,2433.6,2.3046]
[1724808599544,4.10743,2434.7,2433.7,0.90680598]
[1724808599842,4.10739,2434.7,2433.8,0.08216002]
[1724808600042,4.10704,2434.9,2433.9,5.94186578]
[1724808600244,6.57817,2435.8,2434.0,0.08215461]
[1724808600245,4.10679,2435.0,2434.0,0.08215461]
[1724808600511,4.10667,2435.1,2434.3,5.94186578]
[1724808600659,4.10655,2435.2,2434.4,0.08214177]
[1724808600977,4.10772,2434.5,2434.1,2.4279]
[1724808601117,4.10635,2435.3,2434.2,0.08215456]
[1724808601316,4.10664,2435.1,2434.2,0.08215456]
[1724808601551,4.10745,2434.6,2434.1,2.4279]
[1724808601880,4.10771,2434.5,2434.1,2.4279]
[1724808602051,4.10687,2435.0,2434.1,2.4279]
[1724808602052,4.108,2434.3,2434.1,2.4279]
[1724808602358,4.10906,2433.7,2432.8,2.3395]
[1724808602667,4.10959,2433.4,2432.8,2.3395]
[1724808602817,4.10851,2434.0,2432.8,2.3395]
[1724808603020,4.1094,2433.5,2432.8,2.3395]
[1724808603365,4.10963,2433.4,2432.8,2.3395]
[1724808603659,4.10974,2433.3,2432.8,2.3395]
[1724808603829,0.41094,2433.5,2432.8,2.3395]
[1724808604161,4.10837,2434.1,2432.8,2.3395]
[1724808604162,4.10991,2433.2,2432.8,2.3395]
[1724808604374,4.10824,2434.2,2433.1,5.94186578]
[1724808604546,5.94186578,2435.6,2432.9,0.0822084]
[1724808604547,4.1064,2435.3,2433.5,5.94186578]
[1724808604750,4.1064,2435.3,2433.6,0.08215737]
[1724808604751,8.21513,2434.6,2433.6,0.08215737]
[1724808605079,4.10737,2434.7,2433.6,3.08215737]
[1724808605237,4.10747,2434.6,2433.7,0.90240232]
[1724808605439,4.1073,2434.7,2434.0,2.3535]
[1724808605666,4.10755,2434.6,2434.0,2.43565732]
[1724808605870,6.39754,2435.5,2434.0,2.43565732]
[1724808605871,4.10813,2434.2,2434.0,2.3535]
[1724808606073,8.21515,2434.6,2434.0,2.3535]
[1724808606251,4.10755,2434.6,2434.0,2.3535]
[1724808606648,4.10721,2434.8,2434.0,2.3535]
[1724808606856,4.10732,2434.7,2434.0,2.3535]
[1724808607055,2.2916,2435.5,2434.0,2.3535]
[1724808607246,4.10805,2434.3,2434.0,2.3535]
[1724808607448,4.10822,2434.2,2434.0,2.3535]
[1724808607664,4.10772,2434.5,2434.0,2.3535]
[1724808608064,4.10703,2434.9,2434.1,0.08215896]
[1724808608264,3.0,2435.3,2434.1,0.08215896]
[1724808608265,3.63977,2435.3,2434.1,0.91991143]
[1724808608465,4.10737,2434.7,2434.1,0.83775247]
[1724808608664,4.10737,2434.7,2434.0,2.3535]
[1724808608871,4.74613,2435.3,2434.2,0.08215229]
[1724808609069,4.10603,2435.5,2434.3,5.94186578]
[1724808609239,4.10603,2435.5,2434.2,0.49235229]
[1724808609240,4.10603,2435.5,2434.7,5.94186578]
[1724808609547,4.10539,2435.9,2434.7,5.94186578]
[1724808609751,6.51454,2436.4,2434.4,2.4241]
[1724808609752,4.1073,2434.7,2434.4,2.4241]
[1724808609946,4.10746,2434.6,2434.4,2.4241]
[1724808610177,4.10544,2435.8,2434.0,8.0]
[1724808610178,4.10631,2435.3,2434.0,7.3636]
[1724808610338,4.10775,2434.5,2434.0,7.3636]
[1724808610938,4.10773,2434.5,2434.0,7.3636]
[1724808611184,4.10711,2434.8,2434.1,0.08216432]
[1724808611483,4.10713,2434.8,2434.1,0.08216432]
[1724808611679,4.10758,2434.6,2434.0,13.30546578]
[1724808611895,4.10675,2435.1,2434.0,13.30546578]
[1724808611896,4.10721,2434.8,2434.0,13.30546578]
[1724808612187,4.10675,2435.1,2434.1,0.08215485]
[1724808612188,4.10661,2435.1,2434.1,0.08215485]
[1724808612393,4.10696,2434.9,2434.4,5.94186578]
[1724808612565,4.10696,2434.9,2434.1,1.33876206]
[1724808612895,4.10729,2434.7,2434.0,13.71566578]
[1724808613191,4.10615,2435.4,2434.0,13.71566578]
[1724808613487,4.10635,2435.3,2434.1,0.08214602]
[1724808613691,4.10635,2435.3,2434.4,5.94186578]
[1724808614007,9.47237489,2437.9,2434.8,5.94186578]
[1724808614008,4.1057,2435.7,2434.8,5.94186578]
[1724808614284,4.10579,2435.6,2434.9,0.08212479]
[1724808614488,8.21076,2435.9,2434.9,0.08212479]
[1724808614689,0.4102,2437.5,2434.9,0.08212479]
[1724808614690,0.22647,2436.4,2435.2,5.94186578]
[1724808614899,2.4158,2437.1,2435.6,5.94186578]
[1724808614900,4.10431,2436.5,2435.6,5.94186578]
[1724808615057,4.10399,2436.7,2435.7,0.49229708]
[1724808615253,4.10399,2436.7,2435.8,0.08209433]
[1724808615511,4.10437,2436.5,2436.0,5.94186578]
[1724808615684,4.10593,2435.5,2435.4,2.4167]
[1724808615885,0.45345648,2436.8,2434.6,2.4167]
[1724808615886,4.10631,2435.3,2434.6,2.4167]
[1724808616096,0.410631,2435.3,2434.6,2.4167]
[1724808616266,4.10598,2435.5,2434.7,0.08214199]
[1724808616470,4.10598,2435.5,2434.7,0.72484463]
[1724808616670,4.10627,2435.3,2434.6,2.4167]
[1724808616867,4.10698,2434.9,2434.6,2.4167]
[1724808617066,4.10608,2435.5,2434.5,0.08214908]
[1724808617292,4.10597,2435.5,2434.6,0.08213616]
[1724808617502,8.21284,2435.3,2434.4,5.94186578]
[1724808617656,4.10662,2435.1,2434.4,5.94186578]
[1724808617860,0.03817008,2435.4,2434.5,0.08213126]
[1724808618056,0.03817008,2435.3,2434.5,0.08213126]
[1724808618296,0.03817008,2435.3,2434.6,2.4659]
[1724808618591,0.03817008,2435.2,2434.6,5.4659]
[1724808618797,0.03817008,2435.2,2434.7,0.08213159]
[1724808619165,4.10578,2435.6,2434.6,5.4659]
[1724808619394,0.03817008,2435.1,2434.7,0.617359]
[1724808619601,3.0,2436.1,2434.6,5.4659]
[1724808619810,0.03817008,2435.0,2434.6,2.4659]
[1724808620115,3.0,2436.1,2434.9,2.4306]
[1724808620116,4.10535,2435.9,2434.9,2.4306]
[1724808620423,4.40493,2436.1,2435.0,0.83724658]
[1724808620639,0.05,2438.0,2435.0,0.83724658]
[1724808620640,0.03817008,2435.8,2435.2,5.94186578]
[1724808620917,6.37166,2437.1,2435.2,5.94186578]
[1724808620918,4.10481,2436.2,2435.3,5.3424]
[1724808621123,0.03817008,2435.7,2435.3,5.3424]
[1724808621309,2.2683,2437.1,2435.6,5.94186578]
[1724808621310,6.37157,2437.1,2435.6,5.94186578]
[1724808621515,4.10261,2437.5,2435.6,5.94186578]
[1724808621516,4.10383,2436.8,2435.8,2.4298]
[1724808621722,8.20703,2437.0,2436.0,5.94186578]
[1724808621916,4.10357,2436.9,2436.1,0.4922831]
[1724808622085,4.10349,2437.0,2436.1,0.4922831]
[1724808622289,2.3146,2437.9,2436.1,0.4102]
[1724808622290,4.10293,2437.3,2436.1,0.4102]
[1724808622512,4.10399,2436.7,2436.1,0.4102]
[1724808622831,4.10468,2436.3,2436.1,0.4102]
[1724808623133,4.10468,2436.3,2435.8,2.4298]
[1724808623294,4.10479,2436.2,2435.8,2.4298]
[1724808623633,4.10543,2435.8,2435.4,2.4182]
[1724808623918,0.410543,2435.8,2435.4,2.4182]
[1724808624131,4.1052,2436.0,2435.4,2.4182]
[1724808624301,4.10492,2436.1,2435.4,2.4182]
[1724808624881,4.10522,2436.0,2435.4,2.4182]
[1724808625120,4.10522,2436.0,2435.0,5.4102]
[1724808625121,4.10579,2435.6,2435.0,7.4093]
[1724808625323,4.1066,2435.1,2435.0,5.0]
[1724808625483,4.10646,2435.2,2435.0,5.0]
[1724808625690,8.2132,2435.1,2435.0,5.0]
[1724808626321,4.10598,2435.5,2435.0,5.0]
[1724808626322,4.10603,2435.5,2435.0,5.0]
[1724808626530,4.516633,2435.5,2435.0,5.0]
[1724808626696,0.410603,2435.5,2435.0,5.0]
[1724808626884,8.2132,2435.1,2435.0,5.0]
[1724808627729,12.3198,2435.1,2435.0,5.0]
[1724808627940,16.4264,2435.1,2435.0,5.0]
[1724808628084,19.4264,2435.1,2435.0,5.0]
[1724808628288,22.72843176,2435.1,2435.0,5.0]
[1724808628530,18.62183176,2435.1,2435.0,5.0]
[1724808628987,9.11433176,2435.1,2435.0,5.0]
[1724808629632,13.22093176,2435.1,2435.0,5.0]
[1724808629939,4.10589,2435.6,2435.0,5.0]
[1724808630091,4.10614,2435.4,2435.0,5.0]
[1724808630434,4.10561,2435.7,2435.0,5.0]
[1724808630586,4.10558,2435.8,2435.1,0.08212577]
[1724808630788,4.10528,2435.9,2435.1,0.08212577]
[1724808630789,8.21066,2435.9,2435.1,0.08212577]
[1724808631144,2.7909399,2436.6,2435.2,8.34636578]
[1724808631145,4.10468,2436.3,2435.2,8.34636578]
[1724808631426,4.10461,2436.3,2435.7,2.2555]
[1724808631632,4.10376,2436.8,2435.7,2.2555]
[1724808631633,4.10493,2436.1,2435.7,2.2555]
[1724808631800,4.10444,2436.4,2435.3,0.4102]